[Event "26th Zadar Open 2019"]
[Site "Zadar"]
[Date "2019.12.16"]
[Round "3.16"]
[White "Bukal, Vladimir Jr."]
[Black "Deglmann, Ludwig"]
[Result "1-0"]
[ECO "A80"]
[WhiteElo "2393"]
[BlackElo "2261"]
[Annotator "NA"]
[PlyCount "53"]
[EventDate "2019.12.15"]
[EventType "swiss"]
[EventCountry "CRO"]
[SourceTitle "playchess.com"]
[Source "ChessBase"]
[SourceQuality "1"]
[TimeControl "40/5400+30:1800+30"]

1. d4 {[%emt 0:00:30]} f5 {[%emt 0:00:30]} 2. Bf4 {[%emt 0:00:30]} Nf6 {[%emt 0:01:30]} 3. e3 {[%emt 0:00:00]} d6 {[%emt 0:05:30]} 4. Nc3 {[%emt 0:02:00]} g6 {[%emt 0:02:30]} 5. h4 {[%emt 0:00:30]} h6 {[%emt 0:01:30]} 6. Qf3 {[%emt 0:00:00]} Bg7 {[%emt 0:07:30]} 7. Qg3 {[%emt 0:00:00]} Kf7 {[%emt 0:01:30]} 8. O-O-O {[%emt 0:01:30]} Qe8 {[%emt 0:06:30]} 9. Bc4+ {[%emt 0:03:30]} e6 {[%emt 0:06:30]} 10. e4 {[%emt 0:10:30]} fxe4 {[%emt 0:10:30]} 11. f3 {[%emt 0:00:30]} d5 {[%emt 0:26:30]} 12. Bf1 {[%emt 0:12:30]} Nh5 {[%emt 0:06:32]} 13. Qh2 {[%emt 0:00:30]} Nc6 {[%emt 0:01:55]} 14. Nb5 {[%emt 0:01:30]} e5 {[%emt 0:02:41]} 15. Nxc7 {[%emt 0:02:30]} Qd8 {[%emt 0:10:37]} 16. dxe5 {[%emt 0:04:30]} Nxf4 {[%emt 0:02:29]} 17. Qxf4+ {[%emt 0:00:30]} Kg8 {[%emt 0:00:25]} 18. Nxd5 {[%emt 0:18:30]} Bxe5 {[%emt 0:00:10]} 19. Qe3 {[%emt 0:02:30]} Qa5 {[%emt 0:01:02]} 20. Bc4 {[%emt 0:01:30]} Kg7 {[%emt 0:00:26]} 21. f4 {[%emt 0:07:30]} Bd6 {[%emt 0:01:04]} 22. h5 {[%emt 0:00:30]} Bf5 {[%emt 0:01:03]} 23. Ne2 {[%emt 0:02:30]} Rad8 {[%emt 0:00:59]} 24. Ng3 {[%emt 0:01:30]} Bg4 {[%emt 0:00:38]} 25. Qxe4 {[%emt 0:00:30]} gxh5 {[%emt 0:00:51]} 26. Nxh5+ {[%emt 0:00:30]} Kf8 {[%emt 0:00:27]} 27. Qg6 {[%emt 0:01:30]} 1-0

[Event "26th Zadar Open 2019"]
[Site "Zadar"]
[Date "2019.12.16"]
[Round "3.17"]
[White "Stocko, Josip"]
[Black "Martinovic, Sasa"]
[Result "0-1"]
[ECO "B58"]
[WhiteElo "2267"]
[BlackElo "2544"]
[Annotator "ChessBase"]
[PlyCount "110"]
[EventDate "2019.12.15"]
[EventType "swiss"]
[EventCountry "CRO"]
[SourceTitle "playchess.com"]
[Source "ChessBase"]
[SourceQuality "1"]
[TimeControl "40/5400+30:1800+30"]

1. e4 {[%emt 0:00:30]} c5 {[%emt 0:00:30]} 2. Nf3 {[%emt 0:00:00]} d6 {[%emt 0:00:00]} 3. d4 {[%emt 0:01:00]} cxd4 {[%emt 0:00:00]} 4. Nxd4 {[%emt 0:01:30]} Nf6 {[%emt 0:00:00]} 5. Nc3 {[%emt 0:00:30]} Nc6 {[%emt 0:00:00]} 6. Be2 {[%emt 0:01:30]} e5 {[%emt 0:00:00]} 7. Nf3 {[%emt 0:00:30]} h6 {[%emt 0:00:00]} 8. O-O {[%emt 0:02:30]} Be7 {[%emt 0:00:30]} 9. Re1 {[%emt 0:07:30]} O-O {[%emt 0:00:00]} 10. Bf1 {[%emt 0:14:30]} Bg4 {[%emt 0:00:00]} 11. h3 {[%emt 0:03:30]} Bh5 {[%emt 0:00:00]} 12. a3 {[%emt 0:08:30]} Rc8 {[%emt 0:13:00]} 13. Be2 {[%emt 0:14:30]} Bg6 {[%emt 0:04:30]} 14. Bd3 {[%emt 0:03:30]} a6 {[%emt 0:04:30]} 15. Nh2 {[%emt 0:04:30]} Kh8 {[%emt 0:12:30]} 16. Nf1 {[%emt 0:06:30]} Nb8 {[%emt 0:05:30]} 17. Ne3 {[%emt 0:01:30]} Nbd7 {[%emt 0:00:30]} 18. Ned5 {[%emt 0:03:30]} Nb6 {[%emt 0:01:30]} 19. Nxf6 {[%emt 0:06:46]} Bxf6 {[%emt 0:00:00]} 20. Be3 {[%emt 0:08:16]} Bg5 {[%emt 0:00:00]} 21. Qd2 {[%emt 0:02:48]} f6 {[%emt 0:04:30]} 22. Rad1 {[%emt 0:00:56]} Bf7 {[%emt 0:00:30]} 23. Bxg5 {[%emt 0:00:15]} hxg5 {[%emt 0:00:30]} 24. Bf1 {[%emt 0:02:13]} Rc6 {[%emt 0:00:00]} 25. Re3 {[%emt 0:00:23]} Qc7 {[%emt 0:01:00]} 26. Qe1 {[%emt 0:01:28]} g6 {[%emt 0:04:30]} 27. f3 {[%emt 0:00:25]} Kg7 {[%emt 0:00:30]} 28. h4 {[%emt 0:00:18]} gxh4 {[%emt 0:00:30]} 29. Qxh4 {[%emt 0:00:30]} Rh8 {[%emt 0:00:30]} 30. Qf2 {[%emt 0:00:44]} Nc8 {[%emt 0:05:30]} 31. Rd2 {[%emt 0:00:31]} Ne7 {[%emt 0:00:30]} 32. g3 {[%emt 0:02:42]} b5 {[%emt 0:07:30]} 33. f4 {[%emt 0:00:12]} Qc8 {[%emt 0:03:30]} 34. Red3 {[%emt 0:01:09]} Bc4 {[%emt 0:00:30]} 35. Rf3 {[%emt 0:00:34]} Bxf1 {[%emt 0:01:30]} 36. Qxf1 {[%emt 0:00:01]} Qg4 {[%emt 0:00:30]} 37. Nd5 {[%emt 0:01:25]} Nxd5 {[%emt 0:07:30]} 38. exd5 {[%emt 0:00:30]} e4 {[%emt 0:00:30]} 39. dxc6 {[%emt 0:00:30]} exf3 {[%emt 0:00:30]} 40. Qe1 {[%emt 0:00:30]} Kf7 {[%emt 0:00:00]} 41. Rh2 {[%emt 0:26:58]} Rxh2 {[%emt 0:12:00]} 42. Kxh2 {[%emt 0:00:06]} Qh5+ {[%emt 0:00:00]} 43. Kg1 {[%emt 0:00:04]} Qc5+ {[%emt 0:00:00]} 44. Qf2 {[%emt 0:00:57]} Qxc6 {[%emt 0:00:30]} 45. Qa7+ {[%emt 0:00:54]} Ke6 {[%emt 0:07:30]} 46. Qe3+ {[%emt 0:00:24]} Kf5 {[%emt 0:00:30]} 47. Kf2 {[%emt 0:02:03]} Qxc2+ {[%emt 0:01:30]} 48. Kxf3 {[%emt 0:00:07]} Qc6+ {[%emt 0:00:00]} 49. Ke2 {[%emt 0:00:38]} Qg2+ {[%emt 0:02:00]} 50. Kd3 {[%emt 0:00:39]} d5 {[%emt 0:02:30]} 51. Kc3 {[%emt 0:01:55]} Qe4 {[%emt 0:00:30]} 52. Qa7 {[%emt 0:01:19]} d4+ {[%emt 0:02:30]} 53. Kd2 {[%emt 0:00:43]} Qe3+ {[%emt 0:01:30]} 54. Kd1 {[%emt 0:00:11]} Kg4 {[%emt 0:02:30]} 55. Qxa6 {[%emt 0:00:29]} d3 {[%emt 0:00:30]} 0-1

[Event "26th Zadar Open 2019"]
[Site "Zadar"]
[Date "2019.12.16"]
[Round "3.18"]
[White "Plenkovic, Zdenko"]
[Black "Peng, Hongchi"]
[Result "0-1"]
[ECO "D00"]
[WhiteElo "2355"]
[BlackElo "2271"]
[Annotator "NA"]
[PlyCount "64"]
[EventDate "2019.12.15"]
[EventType "swiss"]
[EventCountry "CRO"]
[SourceTitle "playchess.com"]
[Source "ChessBase"]
[SourceQuality "1"]
[TimeControl "40/5400+30:1800+30"]

1. Nf3 {[%emt 0:00:30]} Nf6 {[%emt 0:00:30]} 2. d4 {[%emt 0:00:00]} g6 {[%emt 0:00:30]} 3. Nc3 {[%emt 0:00:00]} d5 {[%emt 0:00:30]} 4. Bf4 {[%emt 0:00:30]} Bg7 {[%emt 0:00:30]} 5. e3 {[%emt 0:00:00]} O-O {[%emt 0:09:30]} 6. Be2 {[%emt 0:03:00]} c5 {[%emt 0:02:30]} 7. Ne5 {[%emt 0:05:30]} cxd4 {[%emt 0:04:30]} 8. exd4 {[%emt 0:04:30]} Nc6 {[%emt 0:04:30]} 9. Qd2 {[%emt 0:04:30]} Bf5 {[%emt 0:32:30]} 10. h4 {[%emt 0:18:30]} Ne4 {[%emt 0:07:30]} 11. Nxe4 {[%emt 0:12:30]} dxe4 {[%emt 0:00:30]} 12. Nxc6 {[%emt 0:06:30]} bxc6 {[%emt 0:00:00]} 13. O-O-O {[%emt 0:00:30]} Qb6 {[%emt 0:11:00]} 14. Bh6 {[%emt 0:04:30]} Rfb8 {[%emt 0:01:30]} 15. b3 {[%emt 0:00:30]} Bh8 {[%emt 0:00:00]} 16. g4 {[%emt 0:02:30]} Be6 {[%emt 0:02:00]} 17. Be3 {[%emt 0:08:30]} Rd8 {[%emt 0:03:10]} 18. h5 {[%emt 0:06:30]} c5 {[%emt 0:01:12]} 19. hxg6 {[%emt 0:00:30]} fxg6 {[%emt 0:00:06]} 20. d5 {[%emt 0:06:59]} Bxd5 {[%emt 0:02:21]} 21. Qe1 {[%emt 0:09:29]} a5 {[%emt 0:01:34]} 22. f4 {[%emt 0:02:03]} Qf6 {[%emt 0:03:01]} 23. c3 {[%emt 0:00:50]} a4 {[%emt 0:00:02]} 24. g5 {[%emt 0:02:22]} Qxc3+ {[%emt 0:01:44]} 25. Qxc3 {[%emt 0:00:04]} Bxc3 {[%emt 0:00:01]} 26. Rxd5 {[%emt 0:01:03]} Rxd5 {[%emt 0:00:03]} 27. Bc4 {[%emt 0:00:12]} e6 {[%emt 0:00:00]} 28. Bxd5 {[%emt 0:01:24]} exd5 {[%emt 0:00:07]} 29. Kc2 {[%emt 0:00:30]} axb3+ {[%emt 0:00:30]} 30. Kxc3 {[%emt 0:00:30]} bxa2 {[%emt 0:00:30]} 31. Kb2 {[%emt 0:00:30]} d4 {[%emt 0:00:30]} 32. Bf2 {[%emt 0:00:30]} e3 {[%emt 0:00:00]} 0-1

[Event "26th Zadar Open 2019"]
[Site "Zadar"]
[Date "2019.12.16"]
[Round "3.19"]
[White "Sahil, Tickoo"]
[Black "Nester, Ihor"]
[Result "1/2-1/2"]
[ECO "A10"]
[WhiteElo "2259"]
[BlackElo "2329"]
[Annotator "NA"]
[PlyCount "175"]
[EventDate "2019.12.15"]
[EventType "swiss"]
[EventCountry "CRO"]
[SourceTitle "playchess.com"]
[Source "ChessBase"]
[SourceQuality "1"]
[TimeControl "40/5400+30:1800+30"]

1. Nf3 {[%emt 0:01:30]} e6 {[%emt 0:07:30]} 2. g3 {[%emt 0:10:30]} f5 {[%emt 0:01:30]} 3. Bg2 {[%emt 0:01:30]} Nf6 {[%emt 0:00:30]} 4. O-O {[%emt 0:00:30]} Be7 {[%emt 0:00:30]} 5. c4 {[%emt 0:01:30]} O-O {[%emt 0:00:30]} 6. Nc3 {[%emt 0:02:30]} d6 {[%emt 0:00:30]} 7. d3 {[%emt 0:00:00]} e5 {[%emt 0:00:30]} 8. e4 {[%emt 0:01:00]} Nc6 {[%emt 0:00:30]} 9. Nd5 {[%emt 0:12:30]} fxe4 {[%emt 0:00:30]} 10. Nxf6+ {[%emt 0:00:30]} Bxf6 {[%emt 0:02:30]} 11. dxe4 {[%emt 0:00:30]} Be6 {[%emt 0:02:30]} 12. b3 {[%emt 0:04:30]} Qe8 {[%emt 0:01:30]} 13. Ne1 {[%emt 0:15:30]} Qg6 {[%emt 0:06:30]} 14. Nc2 {[%emt 0:01:30]} Rae8 {[%emt 0:02:30]} 15. Bb2 {[%emt 0:04:30]} Bg5 {[%emt 0:01:30]} 16. Qe2 {[%emt 0:01:30]} a5 {[%emt 0:00:30]} 17. Rad1 {[%emt 0:00:30]} b6 {[%emt 0:01:30]} 18. Ne3 {[%emt 0:01:30]} Bxe3 {[%emt 0:01:30]} 19. Qxe3 {[%emt 0:00:30]} Qh5 {[%emt 0:01:30]} 20. f4 {[%emt 0:09:30]} Bh3 {[%emt 0:04:30]} 21. Rd2 {[%emt 0:02:30]} Bxg2 {[%emt 0:01:30]} 22. Rxg2 {[%emt 0:00:30]} Rf7 {[%emt 0:05:30]} 23. f5 {[%emt 0:02:30]} Qg4 {[%emt 0:00:30]} 24. h3 {[%emt 0:01:30]} Qh5 {[%emt 0:01:30]} 25. g4 {[%emt 0:01:30]} Qh4 {[%emt 0:00:30]} 26. Kh2 {[%emt 0:02:30]} h6 {[%emt 0:17:30]} 27. Bc3 {[%emt 0:00:30]} Nd4 {[%emt 0:08:30]} 28. Bxd4 {[%emt 0:04:05]} exd4 {[%emt 0:00:00]} 29. Qxd4 {[%emt 0:00:11]} Re5 {[%emt 0:02:00]} 30. Re2 {[%emt 0:02:00]} Rfe7 {[%emt 0:04:30]} 31. Rfe1 {[%emt 0:00:43]} Re8 {[%emt 0:02:30]} 32. Kg2 {[%emt 0:07:06]} h5 {[%emt 0:11:51]} 33. Qf2 {[%emt 0:00:25]} Qg5 {[%emt 0:00:11]} 34. Qe3 {[%emt 0:01:04]} Rxf5 {[%emt 0:00:34]} 35. Qxg5 {[%emt 0:06:13]} Rxg5 {[%emt 0:00:09]} 36. Kg3 {[%emt 0:00:08]} hxg4 {[%emt 0:00:29]} 37. hxg4 {[%emt 0:00:09]} Rge5 {[%emt 0:01:44]} 38. Re3 {[%emt 0:00:11]} g5 {[%emt 0:01:40]} 39. R1e2 {[%emt 0:00:54]} R8e6 {[%emt 0:01:06]} 40. Kf2 {[%emt 0:01:06]} Kg7 {[%emt 0:04:57]} 41. Kg3 {[%emt 0:00:45]} Re7 {[%emt 0:15:14]} 42. Kg2 {[%emt 0:01:30]} Kf8 {[%emt 0:01:41]} 43. Rf3+ {[%emt 0:04:30]} Ke8 {[%emt 0:00:03]} 44. Rf5 {[%emt 0:00:30]} Rxe4 {[%emt 0:14:36]} 45. Rxe4 {[%emt 0:01:30]} Rxe4 {[%emt 0:00:02]} 46. Kf3 {[%emt 0:00:30]} Re1 {[%emt 0:01:12]} 47. Rxg5 {[%emt 0:00:30]} Kf7 {[%emt 0:01:28]} 48. Rf5+ {[%emt 0:06:30]} Kg6 {[%emt 0:00:01]} 49. Rb5 {[%emt 0:02:24]} Ra1 {[%emt 0:00:35]} 50. a4 {[%emt 0:02:04]} Re1 {[%emt 0:01:08]} 51. Kf4 {[%emt 0:01:11]} Re2 {[%emt 0:00:57]} 52. Rg5+ {[%emt 0:01:09]} Kf6 {[%emt 0:00:08]} 53. Rh5 {[%emt 0:00:31]} Kg6 {[%emt 0:01:14]} 54. Rh3 {[%emt 0:00:17]} Kf6 {[%emt 0:01:42]} 55. Rh7 {[%emt 0:05:07]} Rb2 {[%emt 0:00:23]} 56. g5+ {[%emt 0:01:29]} Kg6 {[%emt 0:00:48]} 57. Rxc7 {[%emt 0:00:02]} Rxb3 {[%emt 0:00:04]} 58. Rc6 {[%emt 0:00:19]} Rd3 {[%emt 0:00:49]} 59. Ke4 {[%emt 0:00:07]} Rb3 {[%emt 0:00:14]} 60. Rxd6+ {[%emt 0:08:42]} Kxg5 {[%emt 0:00:01]} 61. Kd4 {[%emt 0:01:54]} Kf5 {[%emt 0:01:15]} 62. Rh6 {[%emt 0:00:33]} Rb4 {[%emt 0:00:34]} 63. Kd5 {[%emt 0:00:13]} Kf4 {[%emt 0:00:29]} 64. Re6 {[%emt 0:00:46]} Kf5 {[%emt 0:00:22]} 65. Rd6 {[%emt 0:00:34]} Kf4 {[%emt 0:00:14]} 66. Re6 {[%emt 0:00:57]} Kf5 {[%emt 0:00:01]} 67. Rh6 {[%emt 0:00:18]} Kf4 {[%emt 0:00:11]} 68. Kd4 {[%emt 0:00:30]} Kf5 {[%emt 0:00:13]} 69. Rc6 {[%emt 0:00:33]} Kf4 {[%emt 0:01:22]} 70. Rh6 {[%emt 0:00:42]} Kf5 {[%emt 0:00:12]} 71. Rd6 {[%emt 0:00:31]} Kf4 {[%emt 0:00:14]} 72. Rf6+ {[%emt 0:00:25]} Kg5 {[%emt 0:00:01]} 73. Rc6 {[%emt 0:00:35]} Kf4 {[%emt 0:00:17]} 74. Kc3 {[%emt 0:00:23]} Ke5 {[%emt 0:01:06]} 75. c5 {[%emt 0:00:37]} Kd5 {[%emt 0:00:07]} 76. Rxb6 {[%emt 0:00:04]} Rxb6 {[%emt 0:00:11]} 77. cxb6 {[%emt 0:00:04]} Kc6 {[%emt 0:00:05]} 78. Kc4 {[%emt 0:00:30]} Kxb6 {[%emt 0:00:32]} 79. Kd5 {[%emt 0:00:00]} Ka6 {[%emt 0:00:00]} 80. Kc6 {[%emt 0:00:00]} Ka7 {[%emt 0:00:00]} 81. Kb5 {[%emt 0:00:00]} Kb7 {[%emt 0:00:00]} 82. Kxa5 {[%emt 0:00:00]} Ka7 {[%emt 0:00:00]} 83. Kb5 {[%emt 0:00:00]} Kb7 {[%emt 0:00:01]} 84. a5 {[%emt 0:00:00]} Ka7 {[%emt 0:00:03]} 85. a6 {[%emt 0:00:00]} Ka8 {[%emt 0:00:36]} 86. Kb6 {[%emt 0:00:00]} Kb8 {[%emt 0:00:00]} 87. a7+ {[%emt 0:00:00]} Ka8 {[%emt 0:00:00]} 88. Ka6 {[%emt 0:00:00]} 1/2-1/2

[Event "26th Zadar Open 2019"]
[Site "Zadar"]
[Date "2019.12.16"]
[Round "3.20"]
[White "Antova, Gabriela"]
[Black "Zelic, Mladen"]
[Result "1-0"]
[ECO "C63"]
[WhiteElo "2314"]
[BlackElo "2254"]
[Annotator "NA"]
[PlyCount "105"]
[EventDate "2019.12.15"]
[EventType "swiss"]
[EventCountry "CRO"]
[SourceTitle "playchess.com"]
[Source "ChessBase"]
[SourceQuality "1"]
[TimeControl "40/5400+30:1800+30"]

1. e4 {[%emt 0:00:30]} e5 {[%emt 0:01:30]} 2. Nf3 {[%emt 0:00:00]} Nc6 {[%emt 0:00:00]} 3. Bb5 {[%emt 0:00:00]} f5 {[%emt 0:00:00]} 4. d3 {[%emt 0:00:00]} fxe4 {[%emt 0:00:30]} 5. dxe4 {[%emt 0:00:00]} Nf6 {[%emt 0:00:30]} 6. O-O {[%emt 0:00:30]} d6 {[%emt 0:00:30]} 7. Qd3 {[%emt 0:00:30]} a6 {[%emt 0:03:30]} 8. Ba4 {[%emt 0:10:30]} b5 {[%emt 0:03:30]} 9. Bb3 {[%emt 0:00:30]} Na5 {[%emt 0:00:30]} 10. Nbd2 {[%emt 0:16:30]} Nxb3 {[%emt 0:12:30]} 11. Qxb3 {[%emt 0:00:30]} Qe7 {[%emt 0:06:30]} 12. a4 {[%emt 0:02:30]} Bd7 {[%emt 0:05:30]} 13. axb5 {[%emt 0:02:30]} Bxb5 {[%emt 0:04:30]} 14. Re1 {[%emt 0:11:30]} h6 {[%emt 0:05:30]} 15. Nh4 {[%emt 0:04:30]} Qf7 {[%emt 0:00:30]} 16. c4 {[%emt 0:00:00]} Bc6 {[%emt 0:00:30]} 17. Qc3 {[%emt 0:11:00]} Be7 {[%emt 0:08:30]} 18. Nf5 {[%emt 0:05:30]} O-O {[%emt 0:05:30]} 19. f3 {[%emt 0:01:30]} Nh5 {[%emt 0:03:30]} 20. Nf1 {[%emt 0:04:30]} Bd7 {[%emt 0:05:30]} 21. Nxe7+ {[%emt 0:01:30]} Qxe7 {[%emt 0:00:30]} 22. Ra5 {[%emt 0:01:30]} Qh4 {[%emt 0:04:30]} 23. Rd1 {[%emt 0:01:30]} Rf6 {[%emt 0:02:30]} 24. Qe1 {[%emt 0:04:30]} Qxe1 {[%emt 0:11:48]} 25. Rxe1 {[%emt 0:00:30]} Rff8 {[%emt 0:00:50]} 26. Bd2 {[%emt 0:07:30]} Rfb8 {[%emt 0:01:06]} 27. b4 {[%emt 0:00:38]} Nf4 {[%emt 0:00:59]} 28. Rea1 {[%emt 0:00:32]} Bc6 {[%emt 0:05:17]} 29. Rxa6 {[%emt 0:00:40]} Ne2+ {[%emt 0:04:43]} 30. Kf2 {[%emt 0:00:16]} Nd4 {[%emt 0:01:19]} 31. Rxa8 {[%emt 0:09:05]} Rxa8 {[%emt 0:00:33]} 32. Rxa8+ {[%emt 0:00:30]} Bxa8 {[%emt 0:00:32]} 33. Ne3 {[%emt 0:00:38]} Kf7 {[%emt 0:00:27]} 34. Bc3 {[%emt 0:00:30]} Ne6 {[%emt 0:00:37]} 35. Nf5 {[%emt 0:00:30]} h5 {[%emt 0:00:39]} 36. g3 {[%emt 0:00:30]} g6 {[%emt 0:00:01]} 37. Ne3 {[%emt 0:00:38]} Ke7 {[%emt 0:00:30]} 38. Nd5+ {[%emt 0:00:20]} Kd7 {[%emt 0:00:37]} 39. Ke3 {[%emt 0:01:10]} Bb7 {[%emt 0:00:45]} 40. f4 {[%emt 0:00:30]} exf4+ {[%emt 0:01:38]} 41. gxf4 {[%emt 0:30:06]} c6 {[%emt 0:30:50]} 42. Nf6+ {[%emt 0:02:13]} Ke7 {[%emt 0:00:00]} 43. f5 {[%emt 0:00:00]} gxf5 {[%emt 0:00:00]} 44. exf5 {[%emt 0:00:00]} Ng7 {[%emt 0:00:00]} 45. Ng8+ {[%emt 0:00:00]} Kf8 {[%emt 0:00:00]} 46. Nh6 {[%emt 0:00:00]} Ba6 {[%emt 0:00:00]} 47. c5 {[%emt 0:00:00]} dxc5 {[%emt 0:00:00]} 48. bxc5 {[%emt 0:00:00]} Ne8 {[%emt 0:00:00]} 49. Kf4 {[%emt 0:00:00]} Nc7 {[%emt 0:00:00]} 50. Be5 {[%emt 0:00:00]} Ne8 {[%emt 0:00:00]} 51. Kg5 {[%emt 0:00:00]} Be2 {[%emt 0:00:00]} 52. f6 {[%emt 0:00:00]} Bb5 {[%emt 0:00:00]} 53. f7 {[%emt 0:00:00]} 1-0

[Event "26th Zadar Open 2019"]
[Site "Zadar"]
[Date "2019.12.16"]
[Round "3.21"]
[White "Vidic, Teja"]
[Black "Ascic, Pero"]
[Result "1-0"]
[ECO "C97"]
[WhiteElo "2221"]
[BlackElo "2310"]
[Annotator "NA"]
[PlyCount "157"]
[EventDate "2019.12.15"]
[EventType "swiss"]
[EventCountry "CRO"]
[SourceTitle "playchess.com"]
[Source "ChessBase"]
[SourceQuality "1"]
[TimeControl "40/5400+30:1800+30"]

1. e4 {[%emt 0:00:30]} e5 {[%emt 0:00:30]} 2. Nf3 {[%emt 0:00:00]} Nc6 {[%emt 0:00:30]} 3. Bb5 {[%emt 0:00:00]} a6 {[%emt 0:00:30]} 4. Ba4 {[%emt 0:00:30]} Nf6 {[%emt 0:00:00]} 5. O-O {[%emt 0:00:30]} Be7 {[%emt 0:00:00]} 6. Re1 {[%emt 0:00:00]} b5 {[%emt 0:00:30]} 7. Bb3 {[%emt 0:00:00]} O-O {[%emt 0:04:30]} 8. c3 {[%emt 0:00:30]} d6 {[%emt 0:00:30]} 9. h3 {[%emt 0:00:00]} Na5 {[%emt 0:06:30]} 10. Bc2 {[%emt 0:00:00]} c5 {[%emt 0:00:30]} 11. d4 {[%emt 0:00:30]} Qc7 {[%emt 0:00:00]} 12. d5 {[%emt 0:00:30]} Nc4 {[%emt 0:12:00]} 13. b3 {[%emt 0:00:30]} Nb6 {[%emt 0:00:00]} 14. a4 {[%emt 0:00:30]} bxa4 {[%emt 0:12:00]} 15. bxa4 {[%emt 0:00:30]} a5 {[%emt 0:08:30]} 16. Na3 {[%emt 0:00:30]} Bd7 {[%emt 0:00:30]} 17. Rb1 {[%emt 0:01:30]} Rfb8 {[%emt 0:00:30]} 18. Nb5 {[%emt 0:02:30]} Bxb5 {[%emt 0:04:30]} 19. Rxb5 {[%emt 0:02:30]} Nc8 {[%emt 0:07:30]} 20. c4 {[%emt 0:11:30]} Rxb5 {[%emt 0:02:30]} 21. axb5 {[%emt 0:08:30]} Nd7 {[%emt 0:03:30]} 22. Re3 {[%emt 0:02:30]} Ndb6 {[%emt 0:01:30]} 23. Qe2 {[%emt 0:00:30]} Ra7 {[%emt 0:00:30]} 24. Ra3 {[%emt 0:01:30]} Qb8 {[%emt 0:02:30]} 25. Nh2 {[%emt 0:04:30]} Nd7 {[%emt 0:01:30]} 26. Ng4 {[%emt 0:07:30]} Nf6 {[%emt 0:01:30]} 27. f4 {[%emt 0:11:30]} Nxg4 {[%emt 0:05:30]} 28. Qxg4 {[%emt 0:00:30]} Bf6 {[%emt 0:01:30]} 29. f5 {[%emt 0:08:30]} Nb6 {[%emt 0:01:30]} 30. Qe2 {[%emt 0:04:30]} Qd8 {[%emt 0:02:30]} 31. g3 {[%emt 0:07:30]} Bg5 {[%emt 0:07:32]} 32. Bb2 {[%emt 0:00:30]} a4 {[%emt 0:00:59]} 33. h4 {[%emt 0:02:30]} Be7 {[%emt 0:02:31]} 34. Bd3 {[%emt 0:00:30]} Ra8 {[%emt 0:01:44]} 35. Bc1 {[%emt 0:00:30]} Ra7 {[%emt 0:00:47]} 36. Qg4 {[%emt 0:06:55]} Kh8 {[%emt 0:00:51]} 37. Bd2 {[%emt 0:02:48]} Ra8 {[%emt 0:02:17]} 38. Be2 {[%emt 0:01:18]} Ra7 {[%emt 0:00:22]} 39. Be1 {[%emt 0:02:48]} Ra8 {[%emt 0:02:38]} 40. Qh3 {[%emt 0:02:12]} Qd7 {[%emt 0:04:11]} 41. Kh2 {[%emt 0:36:21]} Qd8 {[%emt 0:31:57]} 42. g4 {[%emt 0:00:00]} f6 {[%emt 0:00:00]} 43. Bd2 {[%emt 0:00:00]} Ra7 {[%emt 0:00:00]} 44. Qg2 {[%emt 0:00:00]} Ra8 {[%emt 0:00:00]} 45. Kg1 {[%emt 0:00:00]} Ra7 {[%emt 0:00:00]} 46. Kf1 {[%emt 0:00:00]} Ra8 {[%emt 0:00:00]} 47. Ke1 {[%emt 0:00:00]} Ra7 {[%emt 0:00:00]} 48. Kd1 {[%emt 0:00:00]} Ra8 {[%emt 0:00:00]} 49. Kc1 {[%emt 0:00:00]} Ra7 {[%emt 0:00:00]} 50. Kb1 {[%emt 0:00:00]} Ra8 {[%emt 0:00:00]} 51. Ka1 {[%emt 0:00:00]} Ra7 {[%emt 0:00:00]} 52. g5 {[%emt 0:00:00]} Ra8 {[%emt 0:00:00]} 53. Qg4 {[%emt 0:00:00]} Nd7 {[%emt 0:00:00]} 54. Qh5 {[%emt 0:00:00]} Qg8 {[%emt 0:00:00]} 55. g6 {[%emt 0:00:00]} Nb6 {[%emt 0:00:00]} 56. Ka2 {[%emt 0:00:00]} Ra7 {[%emt 0:02:18]} 57. gxh7 {[%emt 0:03:37]} Qxh7 {[%emt 0:00:02]} 58. Qe8+ {[%emt 0:00:08]} Qg8 {[%emt 0:00:10]} 59. Qh5+ {[%emt 0:00:02]} Qh7 {[%emt 0:00:00]} 60. Qe8+ {[%emt 0:00:07]} Qg8 {[%emt 0:00:02]} 61. Qg6 {[%emt 0:01:50]} Qh7 {[%emt 0:00:04]} 62. Qg4 {[%emt 0:00:40]} Bf8 {[%emt 0:01:19]} 63. Qg2 {[%emt 0:02:27]} Kg8 {[%emt 0:00:23]} 64. h5 {[%emt 0:01:59]} Kf7 {[%emt 0:00:05]} 65. Rh3 {[%emt 0:01:29]} Ke8 {[%emt 0:00:19]} 66. Qg4 {[%emt 0:01:56]} Nc8 {[%emt 0:01:49]} 67. Qh4 {[%emt 0:00:27]} Be7 {[%emt 0:04:30]} 68. Rg3 {[%emt 0:00:03]} Nb6 {[%emt 0:00:48]} 69. Ka3 {[%emt 0:01:08]} Ra8 {[%emt 0:00:32]} 70. Rg6 {[%emt 0:00:19]} Kd7 {[%emt 0:00:35]} 71. Qg4 {[%emt 0:01:13]} Bf8 {[%emt 0:01:19]} 72. h6 {[%emt 0:00:34]} gxh6 {[%emt 0:00:02]} 73. Rxf6 {[%emt 0:00:15]} Kc7 {[%emt 0:00:41]} 74. Qh5 {[%emt 0:00:13]} Nd7 {[%emt 0:00:10]} 75. Rf7 {[%emt 0:01:20]} Qh8 {[%emt 0:00:05]} 76. f6 {[%emt 0:00:25]} Kd8 {[%emt 0:00:16]} 77. Qf5 {[%emt 0:00:13]} Ra7 {[%emt 0:00:08]} 78. Bg4 {[%emt 0:00:21]} Nb6 {[%emt 0:00:11]} 79. Rxa7 {[%emt 0:00:25]} 1-0